fUSD/lending_fUSD_20240420
["ID","MTS","AMOUNT","RATE_DAILY","PERIOD"]
[323005788,1713583843627,-706.92,0.00015068,2]
[323005789,1713583843640,-925.93,0.00015068,2]
[323005790,1713583843649,-1077.41,0.00015068,2]
[323005791,1713583843659,-821.31,0.00015068,2]
[323005792,1713583843669,-519.73,0.00015068,2]
[323005793,1713583843679,-1086.63,0.00015068,2]
[323005794,1713583843689,-500.0,0.00015068,2]
[323005795,1713583843699,-500.0,0.00015068,2]
[323005796,1713583843709,-2975.56,0.00015068,2]
[323005797,1713583843718,-1142.73,0.00015068,2]
[323005798,1713583843729,-1697.93,0.00015068,2]
[323005799,1713583843738,-500.0,0.00015068,2]
[323005800,1713583843748,-565.01,0.00015068,2]
[323005801,1713583844055,-1046.78,0.00015068,2]
[323005802,1713583844065,-914.74,0.00015068,2]
[323005803,1713583844076,-500.0,0.00015068,2]
[323005804,1713583844086,-3398.15,0.00015068,2]
[323005805,1713583844096,-500.0,0.00015068,2]
[323005806,1713583844106,-500.0,0.00015068,2]
[323005807,1713583844116,-902.64,0.00015068,2]
[323005808,1713583844125,-1504.27,0.00015068,2]
[323005809,1713583844139,-639.48,0.00015068,2]
[323005810,1713583844149,-1368.33,0.00015068,2]
[323005811,1713583844158,-1288.95,0.00015068,2]
[323005812,1713583844168,-1780.89,0.00015068,2]
[323005813,1713583844178,-723.11,0.00015068,2]
[323005814,1713583844188,-940.47,0.00015068,2]
[323005815,1713583844198,-500.0,0.00015068,2]
[323005816,1713583844208,-500.0,0.00015068,2]
[323005817,1713583844218,-500.0,0.00015068,2]
[323005818,1713583844227,-500.0,0.00015068,2]
[323005819,1713583844237,-500.0,0.00015068,2]
[323005820,1713583844247,-671.64,0.00015068,2]
[323005821,1713583844257,-542.84,0.00015068,2]
[323005822,1713583844267,-1708.74,0.00015068,2]
[323005823,1713583844277,-391.9542177,0.00015068,2]
[323005824,1713583844287,-1324.3,0.00015068,2]
[323005825,1713583844297,-224.24838994,0.00015068,2]
[323005826,1713583844307,-26933.13,0.00015068,2]
[323005827,1713583844317,-840.89,0.00015068,2]
[323005828,1713583844328,-6202.38,0.00015068,2]
[323005829,1713583844338,-1356.44,0.00015068,2]
[323005830,1713583844348,-509.26,0.00015068,2]
[323005831,1713583844357,-1224.14,0.00015068,2]
[323005832,1713583844368,-500.0,0.00015068,2]
[323005833,1713583844378,-1526.8,0.00015068,2]
[323005834,1713583844388,-500.0,0.00015068,2]
[323005835,1713583844398,-513.31,0.00015068,2]
[323005836,1713583844408,-2942.34,0.00015068,2]
[323005837,1713583844418,-23386.23,0.00015068,2]
[323005838,1713583844427,-2453.05,0.00015068,2]
[323005839,1713583844437,-528.0,0.00015068,2]
[323005840,1713583844454,-500.0,0.00015068,2]
[323005841,1713583844466,-500.0,0.00015068,2]
[323005842,1713583844477,-2256.6,0.00015068,2]
[323005843,1713583844487,-500.0,0.00015068,2]
[323005844,1713583844497,-500.0,0.00015068,2]
[323005845,1713583844507,-500.0,0.00015068,2]
[323005846,1713583844518,-2053.74,0.00015068,2]
[323005847,1713583844529,-500.0,0.00015068,2]
[323005848,1713583844541,-1134.03,0.00015068,2]
[323005849,1713583844553,-506.26,0.00015068,2]
[323005850,1713583844562,-546.69,0.00015068,2]
[323005851,1713583844572,-500.0,0.00015068,2]
[323005852,1713583844584,-500.0,0.00015068,2]
[323005853,1713583844593,-1453.03,0.00015068,2]
[323005854,1713583844603,-2082.58,0.00015068,2]
[323005855,1713583844614,-24511.06,0.00015068,2]
[323005856,1713583844623,-640.11,0.00015068,2]
[323005857,1713583844633,-500.0,0.00015068,2]
[323005858,1713583844643,-5404.07,0.00015068,2]
[323005859,1713583844654,-686.5,0.00015068,2]
[323005860,1713583844664,-1183.21,0.00015068,2]
[323005861,1713583844673,-808.31,0.00015068,2]
[323005862,1713583844684,-1462.61,0.00015068,2]
[323005863,1713583844693,-500.0,0.00015068,2]
[323005864,1713583844703,-721.12,0.00015068,2]
[323005865,1713583844712,-1103.22,0.00015068,2]
[323005866,1713583844723,-500.0,0.00015068,2]
[323005867,1713583844732,-500.0,0.00015068,2]
[323005868,1713583844743,-3000.05,0.00015068,2]
[323005869,1713583844753,-741.43,0.00015068,2]
[323005870,1713583844763,-500.0,0.00015068,2]
[323005871,1713583844775,-2407.93,0.00015068,2]
[323005872,1713583844786,-518.52,0.00015068,2]
[323005873,1713583844797,-500.0,0.00015068,2]
[323005874,1713583844806,-500.0,0.00015068,2]
[323005875,1713583844817,-618.36,0.00015068,2]
[323005876,1713583844828,-1054.55,0.00015068,2]
[323005877,1713583844838,-500.0,0.00015068,2]
[323005878,1713583844849,-1821.64,0.00015068,2]
[323005879,1713583844859,-2208.68,0.00015068,2]
[323005880,1713583844870,-3436.6,0.00015068,2]
[323005881,1713583844880,-1487.46,0.00015068,2]
[323005882,1713583844889,-16544.29,0.00015068,2]
[323005883,1713583844898,-500.0,0.00015068,2]
[323005884,1713583844909,-998.14,0.00015068,2]
[323005885,1713583844919,-665.58,0.00015068,2]
[323005886,1713583844929,-986.31,0.00015068,2]
[323005887,1713583844940,-500.0,0.00015068,2]
[323005888,1713583844951,-6052.9,0.00015068,2]
[323005889,1713583844962,-500.0,0.00015068,2]
[323005890,1713583844972,-688.4,0.00015068,2]
[323005891,1713583844982,-5929.17,0.00015068,2]
[323005892,1713583844992,-3661.08,0.00015068,2]
[323005893,1713583845003,-1939.53,0.00015068,2]
[323005894,1713583845013,-500.0,0.00015068,2]
[323005895,1713583845023,-1451.39,0.00015068,2]
[323005896,1713583845033,-973.05,0.00015068,2]
[323005897,1713583845043,-500.0,0.00015068,2]
[323005898,1713583845054,-2223.56,0.00015068,2]
[323005899,1713583845064,-269.46920446,0.00015068,2]
[323005900,1713583845217,-230.53079554,0.00015068,2]
[323005901,1713583845227,-500.0,0.00015068,2]
[323005902,1713583845238,-2182.5,0.00015068,2]
[323005903,1713583845249,-2740.03,0.00015068,2]
[323005904,1713583845259,-1047.71,0.00015068,2]
[323005905,1713583845269,-2268.92,0.00015068,2]
[323005906,1713583845279,-500.0,0.00015068,2]
[323005907,1713583845288,-500.0,0.00015068,2]
[323005908,1713583845297,-500.0,0.00015068,2]
[323005909,1713583845307,-500.0,0.00015068,2]
[323005910,1713583845316,-1150.87,0.00015068,2]
[323005911,1713583845326,-648.24,0.00015068,2]
[323005912,1713583845335,-1484.21525515,0.00015068,2]
[323005913,1713583845357,-1059.77474485,0.00015068,2]
[323005914,1713583845366,-500.0,0.00015068,2]
[323005915,1713583845376,-625.55,0.00015068,2]
[323005916,1713583845387,-500.0,0.00015068,2]
[323005917,1713583845398,-500.0,0.00015068,2]
[323005918,1713583845409,-500.0,0.00015068,2]
[323005919,1713583845420,-1479.16,0.00015068,2]
[323005920,1713583845429,-3475.97,0.00015068,2]
[323005921,1713583845440,-500.0,0.00015068,2]
[323005922,1713583845454,-500.0,0.00015068,2]
[323005923,1713583845468,-1328.58,0.00015068,2]
[323005924,1713583845479,-898.85,0.00015068,2]
[323005925,1713583845488,-528.83,0.00015068,2]
[323005926,1713583845498,-500.0,0.00015068,2]
[323005927,1713583845508,-10881.94,0.00015068,2]
[323005928,1713583845518,-500.0,0.00015068,2]
[323005929,1713583845528,-500.0,0.00015068,2]
[323005930,1713583845537,-521.8,0.00015068,2]
[323005931,1713583845547,-1021.24,0.00015068,2]
[323005932,1713583845557,-2064.9,0.00015068,2]
[323005933,1713583845566,-500.0,0.00015068,2]
[323005934,1713583845576,-820.1,0.00015068,2]
[323005935,1713583845585,-1856.88,0.00015068,2]
[323005936,1713583845594,-1309.05,0.00015068,2]
[323005937,1713583845603,-1366.77,0.00015068,2]
[323005938,1713583845613,-800.73,0.00015068,2]
[323005939,1713583845622,-1063.31,0.00015068,2]
[323005940,1713583845631,-992.46,0.00015068,2]
[323005941,1713583845641,-564.41,0.00015068,2]
[323005942,1713583845650,-500.0,0.00015068,2]
[323005943,1713583845660,-1023.85,0.00015068,2]
[323005944,1713583845669,-779.63,0.00015068,2]
[323005945,1713583845678,-500.0,0.00015068,2]
[323005946,1713583845687,-500.0,0.00015068,2]
[323005947,1713583845698,-500.0,0.00015068,2]
[323005948,1713583845707,-740.08,0.00015068,2]
[323005949,1713583845718,-521.46,0.00015068,2]
[323005950,1713583845728,-3904.49,0.00015068,2]
[323005951,1713583845738,-963.38,0.00015068,2]
[323005952,1713583845751,-2447.13,0.00015068,2]
[323005953,1713583845761,-4414.4,0.00015068,2]
[323005954,1713583845772,-2917.88,0.00015068,2]
[323005955,1713583845782,-500.0,0.00015068,2]
[323005956,1713583845792,-4509.72,0.00015068,2]
[323005957,1713583845802,-500.0,0.00015068,2]
[323005958,1713583845811,-500.0,0.00015068,2]
[323005959,1713583845823,-503.20436968,0.00015068,2]
[323005960,1713583845833,-772.26,0.00015068,2]
[323005961,1713583845844,-557.61,0.00015068,2]
[323005962,1713583845853,-500.0,0.00015068,2]
[323005963,1713583845863,-500.0,0.00015068,2]
[323005964,1713583845873,-685.87,0.00015068,2]
[323005965,1713583845883,-1539.22,0.00015068,2]
[323005966,1713583845893,-2326.04,0.00015068,2]
[323005967,1713583845903,-579.98,0.00015068,2]
[323005968,1713583845913,-1577.2,0.00015068,2]
[323005969,1713583845923,-1511.09,0.00015068,2]
[323005970,1713583845933,-500.0,0.00015068,2]
[323005971,1713583845943,-500.0,0.00015068,2]
[323005972,1713583845953,-1180.65,0.00015068,2]
[323005973,1713583845963,-632.12,0.00015068,2]
[323005974,1713583845973,-920.39,0.00015068,2]
[323005975,1713583845982,-500.0,0.00015068,2]
[323005976,1713583845992,-500.0,0.00015068,2]
[323005977,1713583846002,-518.24427123,0.00015068,2]
[323005978,1713583846011,-1378.57,0.00015068,2]
[323005979,1713583846023,-855.4,0.00015068,2]
[323005980,1713583846033,-500.0,0.00015068,2]
[323005981,1713583846042,-2333.59,0.00015068,2]
[323005982,1713583846053,-2728.1,0.00015068,2]
[323005983,1713583846062,-500.0,0.00015068,2]
[323005984,1713583846071,-500.0,0.00015068,2]
[323005985,1713583846081,-500.0,0.00015068,2]
[323005986,1713583846090,-1635.84,0.00015068,2]
[323005987,1713583846099,-500.0,0.00015068,2]
[323005988,1713583846109,-724.49,0.00015068,2]
[323005989,1713583846118,-500.0,0.00015068,2]
[323005990,1713583846128,-1888.58,0.00015068,2]
[323005991,1713583846138,-500.0,0.00015068,2]
[323005992,1713583846148,-500.0,0.00015068,2]
[323005993,1713583846158,-653.84,0.00015068,2]
[323005994,1713583846168,-500.0,0.00015068,2]
[323005995,1713583846178,-500.0,0.00015068,2]
[323005996,1713583846188,-1760.34,0.00015068,2]
[323005997,1713583846197,-2932.46,0.00015068,2]
[323005998,1713583846206,-1707.37,0.00015068,2]
[323005999,1713583846216,-500.0,0.00015068,2]
[323006000,1713583846226,-617.99,0.00015068,2]
[323006001,1713583846236,-563.65,0.00015068,2]
[323006002,1713583846247,-866.11,0.00015068,2]
[323006003,1713583846257,-500.0,0.00015068,2]
[323006004,1713583846268,-4055.43,0.00015068,2]
[323006005,1713583846278,-500.0,0.00015068,2]
[323006006,1713583846289,-1527.36,0.00015068,2]
[323006007,1713583846299,-603.93,0.00015068,2]
[323006008,1713583846308,-625.46,0.00015068,2]
[323006009,1713583846317,-500.0,0.00015068,2]
[323006010,1713583846327,-1347.78,0.00015068,2]
[323006011,1713583846337,-500.0,0.00015068,2]
[323006012,1713583846347,-1999.17,0.00015068,2]
[323006013,1713583846358,-1246.57,0.00015068,2]
[323006014,1713583846368,-871.95,0.00015068,2]
[323006015,1713583846378,-1352.18,0.00015068,2]
[323006016,1713583846388,-500.0,0.00015068,2]
[323006017,1713583846398,-2494.77,0.00015068,2]
[323006019,1713583846407,-510.50575539,0.00015068,2]
[323006021,1713583846418,-1018.76,0.00015068,2]
[323006023,1713583846428,-500.0,0.00015068,2]
[323006032,1713583846544,-500.0,0.00015068,2]
[323006033,1713583846555,-500.0,0.00015068,2]
[323006034,1713583846564,-500.0,0.00015068,2]
[323006035,1713583846574,-618.18,0.00015068,2]
[323006036,1713583846583,-792.28,0.00015068,2]
[323006037,1713583846591,-1120.04,0.00015068,2]
[323006038,1713583846601,-821.08,0.00015068,2]
[323006039,1713583846611,-500.0,0.00015068,2]
[323006040,1713583846621,-1686.24,0.00015068,2]
[323006041,1713583846631,-5262.19,0.00015068,2]
[323006042,1713583846641,-1325.95,0.00015068,2]
[323006043,1713583846651,-1940.67,0.00015068,2]
[323006044,1713583846660,-500.0,0.00015068,2]
[323006045,1713583846669,-14940.48,0.00015068,2]
[323006046,1713583846680,-979.75,0.00015068,2]
[323006047,1713583846690,-616.63,0.00015068,2]
[323006048,1713583846700,-513.42291167,0.00015068,2]
[323006049,1713583846710,-898.32,0.00015068,2]
[323006050,1713583846719,-860.51,0.00015068,2]
[323006051,1713583846729,-517.32,0.00015068,2]
[323006052,1713583846739,-1378.44,0.00015068,2]
[323006053,1713583846748,-520.64433811,0.00015068,2]
[323006054,1713583846758,-837.64,0.00015068,2]
[323006055,1713583846767,-503.35062921,0.00015068,2]
[323006056,1713583846776,-4207.51,0.00015068,2]
[323006057,1713583846785,-2293.8,0.00015068,2]
[323006058,1713583846794,-500.0,0.00015068,2]
[323006059,1713583846804,-500.0,0.00015068,2]
[323006060,1713583846813,-500.0,0.00015068,2]
[323006061,1713583846822,-500.0,0.00015068,2]
[323006062,1713583846831,-2191.61,0.00015068,2]
[323006063,1713583846841,-981.02,0.00015068,2]
[323006064,1713583846851,-773.07,0.00015068,2]
[323006065,1713583846860,-865.66,0.00015068,2]
[323006066,1713583846869,-3335.78,0.00015068,2]
[323006067,1713583846878,-1153.38,0.00015068,2]
[323006068,1713583846887,-3021.36,0.00015068,2]
[323006069,1713583846896,-586.9,0.00015068,2]
[323006070,1713583846905,-500.0,0.00015068,2]
[323006071,1713583846914,-929.45,0.00015068,2]
[323006072,1713583846923,-2040.84,0.00015068,2]
[323006073,1713583846933,-500.0,0.00015068,2]
[323006074,1713583846942,-2677.56,0.00015068,2]
[323006075,1713583846951,-625.38,0.00015068,2]
[323006076,1713583846960,-500.0,0.00015068,2]
[323006077,1713583846969,-500.0,0.00015068,2]
[323006078,1713583846978,-500.0,0.00015068,2]
[323006079,1713583846988,-500.0,0.00015068,2]
[323006080,1713583846997,-4313.5,0.00015068,2]
[323006081,1713583847006,-6940.06,0.00015068,2]
[323006082,1713583847015,-1586.8,0.00015068,2]
[323006083,1713583847024,-500.0,0.00015068,2]
[323006084,1713583847033,-837.75,0.00015068,2]
[323006085,1713583847042,-500.0,0.00015068,2]
[323006086,1713583847052,-500.0,0.00015068,2]
[323006087,1713583847061,-3163.78,0.00015068,2]
[323006088,1713583847070,-601.04,0.00015068,2]
[323006089,1713583847079,-595.45,0.00015068,2]
[323006090,1713583847088,-334.95461272,0.00015068,2]
[323006091,1713583847097,-500.0,0.00015068,2]
[323006092,1713583847106,-549.55,0.00015068,2]
[323006093,1713583847115,-751.39,0.00015068,2]
[323006094,1713583847124,-500.0,0.00015068,2]
[323006095,1713583847134,-9355.92,0.00015068,2]
[323006096,1713583847143,-500.0,0.00015068,2]
[323006097,1713583847152,-500.0,0.00015068,2]
[323006098,1713583847162,-500.0,0.00015068,2]
[323006099,1713583847171,-500.0,0.00015068,2]
[323006100,1713583847180,-500.0,0.00015068,2]
[323006101,1713583847190,-1706.02,0.00015068,2]
[323006102,1713583847199,-400.0,0.00015068,2]
[323006103,1713583847210,-762.62,0.00015068,2]
[323006104,1713583847219,-500.0,0.00015068,2]
[323006105,1713583847230,-1636.51,0.00015068,2]
[323006106,1713583847240,-1982.23,0.00015068,2]
[323006107,1713583847250,-500.0,0.00015068,2]
[323006108,1713583847259,-500.0,0.00015068,2]
[323006109,1713583847269,-500.0,0.00015068,2]
[323006110,1713583847279,-1667.48,0.00015068,2]
[323006111,1713583847288,-500.0,0.00015068,2]
[323006112,1713583847297,-767.23,0.00015068,2]
[323006113,1713583847306,-624.05,0.00015068,2]
[323006114,1713583847316,-500.0,0.00015068,2]
[323006115,1713583847325,-3075.58,0.00015068,2]
[323006116,1713583847334,-6106.32,0.00015068,2]
[323006117,1713583847344,-500.0,0.00015068,2]
[323006118,1713583847354,-500.0,0.00015068,2]
[323006119,1713583847364,-643.19,0.00015068,2]
[323006120,1713583847373,-500.0,0.00015068,2]
[323006121,1713583847383,-500.0,0.00015068,2]
[323006122,1713583847392,-500.0,0.00015068,2]
[323006123,1713583847403,-1203.47,0.00015068,2]
[323006124,1713583847413,-651.25,0.00015068,2]
[323006125,1713583847423,-2477.9,0.00015068,2]
[323006126,1713583847433,-337.42283517,0.00015101,2]
[323006127,1713583847444,-4175.78613797,0.0001514,2]
[323006128,1713583847459,-337.42283517,0.00015234,2]
[323006129,1713583847468,-10000.0,0.00015242,2]
[323006130,1713583847478,-195.31132247,0.00015242,2]
[323006131,1713583847487,-167.84639331,0.00015242,2]
[323006132,1713583847499,-8663.85974461,0.00015242,2]
[323006133,1713583847509,-3207.0,0.000153,2]
[323006134,1713583847519,-500.0,0.00015342,2]
[323006135,1713583847530,-500.0,0.00015342,2]
[323006136,1713583847541,-500.0,0.00015342,2]
[323006137,1713583847552,-1262.45,0.00015342,2]
[323006138,1713583847561,-765.33,0.00015342,2]
[323006139,1713583847570,-500.0,0.00015342,2]
[323006140,1713583847579,-500.0,0.00015342,2]
[323006141,1713583847588,-500.0,0.00015342,2]
[323006142,1713583847598,-629.90157772,0.00015342,2]
[323006143,1713583847607,-626.1,0.00015342,2]
[323006144,1713583847616,-500.0,0.00015342,2]
[323006145,1713583847625,-500.0,0.00015342,2]
[323006146,1713583847634,-550.5,0.00015342,2]
[323006147,1713583847643,-660.49,0.00015342,2]
[323006148,1713583847654,-500.0,0.00015342,2]
[323006149,1713583847664,-500.0,0.00015342,2]
[323006150,1713583847676,-500.0,0.00015342,2]
[323006151,1713583847686,-580.72,0.00015342,2]
[323006152,1713583847696,-595.58,0.00015342,2]
[323006153,1713583847705,-500.0,0.00015342,2]
[323006154,1713583847714,-500.0,0.00015342,2]
[323006155,1713583847723,-500.0,0.00015342,2]
[323006156,1713583847735,-660.56,0.00015342,2]
[323006157,1713583847745,-500.0,0.00015342,2]
[323006158,1713583847755,-512.27,0.00015342,2]
[323006159,1713583847765,-500.0,0.00015342,2]
[323006160,1713583847776,-500.0,0.00015342,2]
[323006161,1713583847785,-1240.34,0.00015342,2]
[323006162,1713583847797,-364.39592169,0.00015342,2]
[323006163,1713583847806,-651.26,0.00015342,2]
[323006164,1713583847814,-500.0,0.00015342,2]
[323006165,1713583847823,-500.0,0.00015342,2]
[323006166,1713583847833,-500.0,0.00015342,2]
[323006167,1713583847842,-500.0,0.00015342,2]
[323006168,1713583847852,-500.0,0.00015342,2]
[323006169,1713583847861,-500.0,0.00015342,2]
[323006170,1713583847871,-654.08,0.00015342,2]
[323006171,1713583847880,-500.0,0.00015342,2]
[323006172,1713583847890,-500.0,0.00015342,2]
[323006173,1713583847899,-500.0,0.00015342,2]
[323006174,1713583847908,-500.0,0.00015342,2]
[323006175,1713583847918,-500.0,0.00015342,2]
[323006176,1713583847927,-500.0,0.00015342,2]
[323006177,1713583847938,-500.0,0.00015342,2]
[323006178,1713583847947,-500.0,0.00015342,2]
[323006179,1713583847957,-500.0,0.00015342,2]
[323006180,1713583847967,-773.25,0.00015342,2]
[323006181,1713583847976,-550.81,0.00015342,2]
[323006182,1713583847987,-726.55,0.00015342,2]
[323006183,1713583847997,-500.0,0.00015342,2]
[323006184,1713583848006,-500.0,0.00015342,2]
[323006185,1713583848016,-500.0,0.00015342,2]
[323006186,1713583848025,-500.0,0.00015342,2]
[323006187,1713583848036,-624.89,0.00015342,2]
[323006188,1713583848047,-500.0,0.00015342,2]
[323006189,1713583848058,-500.0,0.00015342,2]
[323006190,1713583848069,-500.0,0.00015342,2]
[323006191,1713583848079,-500.0,0.00015342,2]
[323006192,1713583848089,-519.44,0.00015342,2]
[323006193,1713583848098,-500.0,0.00015342,2]
[323006194,1713583848108,-500.0,0.00015342,2]
[323006195,1713583848117,-500.0,0.00015342,2]
[323006196,1713583848127,-638.74115379,0.00015342,2]
[323006197,1713583848136,-500.0,0.00015342,2]
[323006198,1713583848145,-519.95,0.00015342,2]
[323006199,1713583848154,-500.0,0.00015342,2]
[323006200,1713583848163,-500.0,0.00015342,2]
[323006201,1713583848173,-500.0,0.00015342,2]
[323006202,1713583848182,-680.57,0.00015342,2]
[323006203,1713583848192,-500.0,0.00015342,2]
[323006204,1713583848201,-500.0,0.00015342,2]
[323006205,1713583848211,-846.91,0.00015342,2]
[323006206,1713583848220,-412.09763732,0.00015342,2]
[323006207,1713583848230,-500.0,0.00015342,2]
[323006208,1713583848240,-563.69,0.00015342,2]
[323006209,1713583848249,-500.0,0.00015342,2]
[323006210,1713583848258,-500.0,0.00015342,2]
[323006211,1713583848267,-500.0,0.00015342,2]
[323006212,1713583848277,-500.0,0.00015342,2]
[323006213,1713583848287,-500.0,0.00015342,2]
[323006214,1713583848297,-500.0,0.00015342,2]
[323006215,1713583848306,-500.0,0.00015342,2]
[323006216,1713583848316,-500.0,0.00015342,2]
[323006217,1713583848325,-616.11,0.00015342,2]
[323006218,1713583848334,-500.0,0.00015342,2]
[323006219,1713583848344,-549.54,0.00015342,2]
[323006220,1713583848353,-500.0,0.00015342,2]
[323006221,1713583848363,-527.54,0.00015342,2]
[323006222,1713583848372,-834.8,0.00015342,2]
[323006223,1713583848382,-500.0,0.00015342,2]
[323006224,1713583848391,-500.0,0.00015342,2]
[323006225,1713583848401,-620.89,0.00015342,2]
[323006226,1713583848411,-500.0,0.00015342,2]
[323006227,1713583848424,-500.0,0.00015342,2]
[323006228,1713583848432,-500.0,0.00015342,2]
[323006229,1713583848442,-250.32018949,0.00015342,2]
[323006230,1713583848457,-500.0,0.00015342,2]
[323006231,1713583848466,-500.0,0.00015342,2]
[323006232,1713583848475,-757.71,0.00015342,2]
[323006233,1713583848485,-502.85408837,0.00015342,2]
[323006234,1713583848494,-500.0,0.00015342,2]
[323006235,1713583848503,-559.91,0.00015342,2]
[323006236,1713583848512,-500.0,0.00015342,2]
[323006237,1713583848522,-150.0,0.00015342,2]
[323006238,1713583848534,-653.63,0.00015342,2]
[323006239,1713583848544,-500.0,0.00015342,2]
[323006240,1713583848554,-293.08659036,0.00015342,2]
[323006241,1713583848564,-500.0,0.00015342,2]
[323006242,1713583848576,-500.0,0.00015342,2]
[323006243,1713583848586,-500.0,0.00015342,2]
[323006244,1713583848596,-500.0,0.00015342,2]
[323006245,1713583848606,-500.0,0.00015342,2]
[323006246,1713583848616,-500.0,0.00015342,2]
[323006247,1713583848625,-257.99218223,0.00015342,2]
[323006248,1713583848636,-500.0,0.00015342,2]
[323006249,1713583848646,-500.0,0.00015342,2]
[323006250,1713583848656,-500.0,0.00015342,2]
[323006251,1713583848667,-500.0,0.00015342,2]
[323006252,1713583848676,-500.0,0.00015342,2]
[323006253,1713583848686,-522.61,0.00015342,2]
[323006254,1713583848696,-500.0,0.00015342,2]
[323006255,1713583848705,-539.09,0.00015342,2]
[323006256,1713583848714,-500.0,0.00015342,2]
[323006257,1713583848723,-500.0,0.00015342,2]
[323006258,1713583848732,-500.0,0.00015342,2]
[323006259,1713583848741,-500.0,0.00015342,2]
[323006260,1713583848750,-500.0,0.00015342,2]
[323006261,1713583848759,-563.77,0.00015342,2]
[323006262,1713583848768,-500.0,0.00015342,2]
[323006263,1713583848777,-500.0,0.00015342,2]
[323006264,1713583848787,-500.0,0.00015342,2]
[323006265,1713583848796,-374.55986881,0.00015342,2]
[323006266,1713583848805,-500.0,0.00015342,2]
[323006267,1713583848814,-581.74,0.00015342,2]
[323006268,1713583848823,-500.0,0.00015342,2]
[323006269,1713583848833,-513.73,0.00015342,2]
[323006270,1713583848842,-856.02,0.00015342,2]
[323006271,1713583848851,-500.0,0.00015342,2]
[323006272,1713583848860,-500.0,0.00015342,2]
[323006273,1713583848869,-500.0,0.00015342,2]
[323006274,1713583848878,-585.64,0.00015342,2]
[323006275,1713583848887,-699.2,0.00015342,2]
[323006276,1713583848896,-520.63,0.00015342,2]
[323006277,1713583848905,-500.0,0.00015342,2]
[323006278,1713583848914,-500.0,0.00015342,2]
[323006279,1713583848924,-500.0,0.00015342,2]
[323006280,1713583848934,-500.0,0.00015342,2]
[323006281,1713583848944,-777.19,0.00015342,2]
[323006282,1713583848954,-745.1,0.00015342,2]
[323006283,1713583848964,-500.0,0.00015342,2]
[323006284,1713583848973,-777.93,0.00015342,2]
[323006285,1713583848983,-500.0,0.00015342,2]
[323006286,1713583848993,-500.0,0.00015342,2]
[323006287,1713583849002,-745.61,0.00015342,2]
[323006288,1713583849011,-836.54,0.00015342,2]
[323006289,1713583849020,-540.46,0.00015342,2]
[323006290,1713583849030,-500.0,0.00015342,2]
[323006291,1713583849040,-500.0,0.00015342,2]
[323006292,1713583849050,-500.0,0.00015342,2]
[323006293,1713583849059,-500.0,0.00015342,2]
[323006294,1713583849068,-500.0,0.00015342,2]
[323006295,1713583849079,-574.24,0.00015342,2]
[323006296,1713583849089,-500.0,0.00015342,2]
[323006297,1713583849100,-225.71729257,0.00015342,2]
[323006298,1713583849110,-500.0,0.00015342,2]